Cogmind - Beta 14 @@@ ROGUE MODE // 2024.11.12 @ 12:41:37 Player: ChromeKnight Result: Destroyed by YI-UF0 with YI-UF0's Doublenader Performance ------------- Evolutions (0) 0 Regions Visited (2) 400 Robots Destroyed (13) 65 Value Destroyed (110) 110 Prototype IDs (0) 0 Alien Tech Used (0) 0 Bonus (0) 0 TOTAL SCORE: 575 Bonus ------- None Cogmind --------- Core Integrity 0/250 Matter 258/300 Energy 246/250 System Corruption 0% Temperature Cool (2) Movement Walking (120) Location -10/Mines Parts ------- > --- POWER (1) -------- Ion Engine > --- PROPULSION (2) --- Aluminum Leg Aluminum Leg > --- UTILITY (2) ------ Small Storage Unit > --- WEAPON (2) ------- (None) > --- INVENTORY (8) ---- Light Ion Engine Light Ion Engine Light Treads Flight Unit Flight Unit Flight Unit Improved Terrain Scanner Light Assault Rifle Peak State ------------ > --- POWER ------------ Light Ion Engine > --- PROPULSION ------- Light Treads Light Treads > --- UTILITY ---------- Small Storage Unit > --- WEAPON ----------- Assault Rifle Light Assault Rifle > --- INVENTORY -------- Light Ion Engine Light Ion Engine Light Ion Engine Flight Unit Flight Unit Flight Unit Improved Terrain Scanner Medium Laser [Rating: 7] Favorites ----------- Power Light Ion Engine Engine Light Ion Engine Propulsion Light Treads Treads Light Treads Leg Aluminum Leg Utility Small Storage Unit Storage Small Storage Unit Weapon Light Assault Rifle Ballistic Gun Light Assault Rifle Launcher Grenade Launcher Build | -11 -10 -10 ------- Run | Yrd Mat Min Slots Evolved . | . . . Power . | . . . Propulsion . | . . . Utility . | . . . Weapon . | . . . Parts Attached 16 | 6 3 7 Power 4 | 1 1 2 Engine 4 | 1 1 2 Core . | . . . Reactor . | . . . Propulsion 4 | 2 . 2 Treads 2 | 2 . . Leg 2 | . . 2 Wheel . | . . . Hover . | . . . Flight . | . . . Utility 1 | 1 . . Device . | . . . Storage 1 | 1 . . Processor . | . . . Hackware . | . . . Protection . | . . . Artifact . | . . . Weapon 7 | 2 2 3 Energy Gun . | . . . Energy Cannon . | . . . Ballistic Gun 5 | 2 2 1 Ballistic Cannon . | . . . Launcher 2 | . . 2 Special Weapon . | . . . Impact Weapon . | . . . Slashing Weapon . | . . . Piercing Weapon . | . . . Special Melee Weapon . | . . . Unidentified Prototypes . | . . . Parts Lost 2 | . . 2 Power . | . . . Propulsion . | . . . Utility . | . . . Weapon 2 | . . 2 Highest Loss Streak 2 | . . 2 To Critical Strikes . | . . . Average Slot Usage (%) 84 | . 85 84 Engine 14 | . 14 14 Treads 14 | . 28 9 Leg 13 | . . 18 Storage 14 | . 14 14 Ballistic Gun 18 | . 28 14 Launcher 9 | . . 13 Peak Build Rating 7 | 6 7 7 Average Rating 6 | 4 6 6 On Entrance 4 | . 6 7 Naked Turns . | . . . Heaviest Build 15 | 11 11 15 Greatest Support 40 | 40 40 40 Greatest Overweight (x) 1 | . . 1 Average Overweight (x) . | . . . Largest Inventory Capacity 8 | 8 8 8 Average Capacity 7 | 6 8 8 Most Carried 8 | 3 8 8 Average Carried 7 | 1 7 8 Final Capacity 8 | 8 8 8 Final Carried 8 | 3 8 8 Class Distribution -------------------- 55% | Mutant 44% | Derelict-Mutant Dominant Class ---------------- Mutant | -10/Materials Derelict-Mutant | -10/Mines Resources | -11 -10 -10 ----------- Run | Yrd Mat Min Matter Collected 586 | 272 108 206 Remotely . | . . . Salvage Created 384 | 73 264 47 Parts 25 | 6 19 . Haulers Intercepted . | . . . Recyclers Shooed . | . . . Parts Field Recycled . | . . . Retrieved Matter . | . . . Parts Self-Destructed . | . . . Prevented . | . . . Kills | -11 -10 -10 ------- Run | Yrd Mat Min Combat Hostiles Destroyed 22 | . 9 13 Guns 13 | . 9 4 AOE 9 | . . 9 Classes Destroyed 5 | 2 2 1 Worker 1 | . 1 . Tunneler 1 | 1 . . Recycler 2 | 1 1 . Swarmer 9 | . 9 . Assembled 13 | . . 13 Best Kill Streak 11 | 1 4 11 Combat Bots Only 11 | . 3 11 Max Kills in Single Turn 6 | 1 2 6 Gunslinging 1 | . 1 . Exploded 6 | . . 6 Melee . | . . . Uniques/NPCs Destroyed . | . . . Combat | -11 -10 -10 -------- Run | Yrd Mat Min Hostile Shots Fired 105 | . 74 31 Missed 29 | . 20 9 Damage Taken 1019 | . 417 602 Core 261 | . 88 173 Absorbed by Shields . | . . . Core Remaining (%) 100 | 100 . . Volleys Fired 53 | 3 36 14 Largest 2 | 2 2 2 Hottest 50 | 40 40 50 Shots Fired 106 | 6 72 28 Gun 92 | 6 72 14 Cannon . | . . . Launcher 14 | . . 14 Special . | . . . Kinetic 92 | 6 72 14 Thermal . | . . . Explosive 14 | . . 14 Electromagnetic . | . . . Robot Hit Streak 8 | 3 8 4 Robot Miss Streak 6 | 1 6 2 Penetration Max . | . . . Secondary Targets 4 | . 4 . Max Gunslinging Chain 1 | . 1 . Shots Hit Robots 65 | 5 47 13 Core Hits 51 | 4 15 32 Critical Kills 1 | . 1 . Critical Parts Destroyed . | . . . Critical Strikes 1 | . 1 . Destroy 1 | . 1 . Melee Attacks . | . . . Impact . | . . . Slashing . | . . . Piercing . | . . . Sneak Attacks . | . . . Combat Hostiles . | . . . Follow-up Attacks . | . . . Damage Inflicted 1288 | 48 443 797 Guns 578 | 48 443 87 Cannons . | . . . Explosions 709 | . . 709 Melee . | . . . Ramming 1 | . . 1 Kinetic 578 | 48 443 87 Thermal . | . . . Explosive 709 | . . 709 Electromagnetic . | . . . Impact . | . . . Slashing . | . . . Piercing . | . . . Highest Corruption . | . . . Average Corruption . | . . . Corruption Purged . | . . . Corruption Blocked . | . . . Overload Shots . | . . . Overflow Damage 14 | . . 14 Projectiles . | . . . Explosions 14 | . . 14 Melee . | . . . Knockbacks . | . . . Impact . | . . . Kinetic . | . . . Secondary . | . . . Self-Inflicted Damage 74 | . . 74 Shots 3 | . . 3 Rammed 1 | . . 1 Targets Rammed 1 | . . 1 Kicked . | . . . Crushed . | . . . Highest Temperature 40 | . . 40 Average Temperature 17 | . . 17 Received Heat Transfer 40 | . . 40 Siege Activations . | . . . Robots Corrupted . | . . . Combat Hostiles . | . . . Parts Fried . | . . . Impact Corruptions . | . . . Robots Melted . | . . . Combat Hostiles . | . . . Parts Melted . | . . . Heat Transferred . | . . . Parts Sabotaged . | . . . Parts Stolen . | . . . Parts Stripped . | . . . Power Chain Reactions . | . . . Alert | -11 -10 -10 ------- Run | Yrd Mat Min Peak Influence 227 | 10 227 135 Initial 88 | . 6 88 Average 63 | 3 116 46 Maximum Alert Level 1 | . 1 . Low Security (%) 97 | 100 91 100 Level 1 2 | . 8 . Level 2 . | . . . Level 3 . | . . . Level 4 . | . . . Level 5 . | . . . High Security . | . . . Max Security . | . . . Squads Dispatched . | . . . Investigation . | . . . Extermination . | . . . Reinforcement . | . . . Assault . | . . . Garrison . | . . . Intercept . | . . . Searches Triggered . | . . . Construction Impeded . | . . . Haulers Reinforced . | . . . Active Scanning Responses . | . . . Cargo Convoy Interrupts . | . . . Stealth | -11 -10 -10 --------- Run | Yrd Mat Min Distress Signals . | . . . Communications Jammed . | . . . Distress Signals . | . . . Times Spotted 26 | . 10 16 Peak Tracking Total 13 | . 3 13 Tactical Retreats 1 | . . 1 Traps | -11 -10 -10 ------- Run | Yrd Mat Min Traps Triggered . | . . . Indirectly . | . . . Trap Hack Attempts . | . . . Triggered . | . . . Disarmed . | . . . Reprogrammed . | . . . Reused . | . . . Traps Extracted . | . . . Installed . | . . . Triggered . | . . . Machines | -11 -10 -10 ---------- Run | Yrd Mat Min Machines Disabled . | . . . Max in Single Turn . | . . . Machines Repaired . | . . . Machines Dismantled . | . . . Machines Sabotaged . | . . . Overloaded Fab Kills . | . . . Hacking | -11 -10 -10 --------- Run | Yrd Mat Min Machines Accessed 1 | . 1 . Terminals 1 | . 1 . Fabricators . | . . . Repair Stations . | . . . Recycling Units . | . . . Scanalyzers . | . . . Garrison Access . | . . . Total Hacks 6 | . 6 . Successful 4 | . 4 . Failed 2 | . 2 . Catastrophic 1 | . 1 . Database Lockouts . | . . . Manual 3 | . 3 . Terminals 6 | . 6 . Fabricators . | . . . Repair Stations . | . . . Recycling Units . | . . . Scanalyzers . | . . . Garrison Access . | . . . Terminal Hacks 4 | . 4 . Robot Analysis 3 | . 3 . Zone Layout 1 | . 1 . Fabricator Hacks . | . . . Repair Station Hacks . | . . . Recycling Unit Hacks . | . . . Scanalyzer . | . . . Garrison Access Hacks . | . . . Unauthorized Hacks . | . . . Terminals . | . . . Fabricators . | . . . Repair Stations . | . . . Recycling Units . | . . . Scanalyzers . | . . . Garrison Access . | . . . Data Cores Recovered . | . . . Used . | . . . Hacking Detections . | . . . Full Trace Events . | . . . Feedback Events . | . . . Feedback Blocked . | . . . Robot Schematics Acquired . | . . . Robots Built . | . . . Authchips . | . . . Time . | . . . Total Robot Build Rating . | . . . Part Schematics Acquired . | . . . Parts Built . | . . . Authchips . | . . . Time . | . . . Total Part Build Rating . | . . . Parts Repaired . | . . . Time . | . . . Parts Recycled . | . . . Recycled Matter . | . . . Retrieved Matter . | . . . Retrieved Components . | . . . Parts Scanalyzed . | . . . Part Schematics Acquired . | . . . Parts Damaged . | . . . Bothacking | -11 -10 -10 ------------ Run | Yrd Mat Min Used RIF Installer . | . . . Robots Hacked . | . . . Non-combat . | . . . Combat . | . . . Robot Hacks Applied . | . . . Relay Couplers Released . | . . . Fabnet Peak Effective % . | . . . Robots Rewired . | . . . Allies Hacked . | . . . Hacks Repelled . | . . . Allies | -11 -10 -10 -------- Run | Yrd Mat Min Total Allies . | . . . Largest Group . | . . . Highest-Rated Group . | . . . Highest-Rated Ally . | . . . Total Orders . | . . . Ally Attacks . | . . . Total Damage . | . . . Kills . | . . . Allies Corrupted . | . . . Allies Melted . | . . . Intel | -11 -10 -10 ------- Run | Yrd Mat Min Robot Analysis Total 3 | . 3 . Derelict Logs Recovered . | . . . Drone Launches . | . . . Drone Recoveries . | . . . Exploration | -11 -10 -10 ------------- Run | Yrd Mat Min Turns Passed 1416 | 96 393 927 Spaces Moved 507 | 53 173 281 Core 7 | 7 . . Treads 249 | 46 173 30 Legs 251 | . . 251 Wheels . | . . . Hover . | . . . Flight . | . . . Fastest Speed 50 | 50 160 120 Average Speed 138 | 145 160 124 Slowest Speed 190 | 160 160 190 Overloaded Moves . | . . . Propulsion Burnouts . | . . . Robots Hopped . | . . . Cave-ins Triggered . | . . . Exploration Rate (%) 34 | 5 37 62 Regions Visited 2 Branch Regions 1 Pre-discovered Areas . | . . . Known Exits Taken . | . . . Unknown Exits Taken 2 | 1 1 . Scrap Searched 1 | . . 1 Spaces Dug . | . . . Terrain Destroyed 95 | . . 95 Melee . | . . . Projectile . | . . . AOE 95 | . . 95 Terrain Rammed . | . . . Walls Destroyed . | . . . Machines Disabled . | . . . Actions | -11 -10 -10 --------- Run | Yrd Mat Min Total 1133 | 64 236 833 Wait 529 | . 5 524 Move 505 | 52 172 281 Hop . | . . . Pick Up 14 | 3 11 . Fast Attach 8 | 6 . 2 Attach . | . . . Detach . | . . . Swap 8 | . 3 5 Drop 15 | . 9 6 Fire 53 | 3 36 14 Melee . | . . . Ram . | . . . Kick . | . . . Crush 1 | . . 1 Escape Stasis . | . . . Rewire . | . . . Trap . | . . . Miscellaneous . | . . . Route ------- -11/Scrapyard -10/Materials (discovered 2 exits: [*Mat] / [*Min]) -10/Mines (discovered 1 exit: [*Mat]) History --------- Turn | Location | Event 13 | -11/Scrapyard | Discovered new exit (range 15) 97 | -11/Scrapyard | Entered Materials 246 | -10/Materials | Discovered new exit (range 19) 300 | -10/Materials | Build established: Mutant 371 | -10/Materials | Discovered new exit (range 5) 490 | -10/Materials | Entered Mines 503 | -10/Mines | Assembled infested the area 508 | -10/Mines | Assisted by a Guerilla fighting off Assembled 553 | -10/Mines | Destroyed 11 combat bots 786 | -10/Mines | Found DCF Scrap (14 items) 870 | -10/Mines | Core integrity fell below 50% 1098 | -10/Mines | Build established: Derelict-Mutant 1414 | -10/Mines | Core integrity fell below 20% 1417 | -10/Mines | Discovered new exit (range 13) 1417 | -10/Mines | Destroyed by YI-UF0 with YI-UF0's Doublenader Last Messages --------------- 00916_ Acquired 18 matter. 00918_ K-01 Serf collects debris. 00923_ Acquired 49 matter. 00925_ K-01 Serf collects debris. 01000_ K-01 Serf cleans the Plasma Injector. 01010_ K-01 Serf collects debris. 01049_ T-07 Excavator is excavating. 01163_ K-01 Serf collects debris. 01202_ T-07 Excavator is excavating. 01204_ K-01 Serf collects debris. 01252_ T-07 Excavator is excavating. 01399_ R-06 Scavenger destroyed. 01403_ The unstable cave ceiling collapses. 01411_ Assault Rifle destroyed. 01411_ Grenade Launcher destroyed. 01412_ YI-UF0 mumbles something. 01412_ The unstable cave ceiling collapses. 01417_ YI-UF0 mumbles something. 01417_ EXIT=FOUND Map ----- +----------------------------------------------------+ | ?????????????????????????????????????????????????? | | ?????????????????????????????????????????????????? | | ?????????????????????????????????????????????????? | | ?????????????????????????????????????????????????? | | ?????????????????????????????????????????????????? | | ?????????????????????????????????????????????????? | | ?????????????????????????????????????????????????? | | ?????????????????????????????????????????????????? | | ?????????????????????????????????????????????????? | | ?????????????????????????????????????????????????? | | ?????????????????????????????????????????????????? | | ????????????????????????#????????????????????????? | | ?????????????????? ? ????????????????????????? | | ???????????????? ?### ???????????????????? | | ???????????????? " # ???????????????????? | | ????????????????? u r ##?????????????????? | | ?????????????????? ??????????????????? | | ?????????????????? %#?????????????????? | | ??????????????????? % #??? ??????????? | | ???????????????????? # ##? ??????????? | | ????????????????????? # # ??????????? | | ?????????????????????# ?????????? | | ????????????????????### # # =| ?????????? | | ???????????????????## ! #??????????? | | ?????????????#?????# #?????????? | | ?????????????# ##### @g =! ????????? | | ???????????### !% = ????????? | | ???????????# # ????????? | | ???????????# ! %= #??????????? | | ??????????# ### # ?????????? | | ??????????# ##??? #?? ??????????? | | ??????????## #????????????????????? | | ???????????## ## #?????????????? ????? | | ????????????## # ###? #?????????????? !%###? | | ????????????##### ##? #????????????? = # | | ????####???## ## ## ####????????? | | ????# ##### # # !%!#????????? | | ????# # #?##|#??????????## | | ????# # # ##??# #????????? % | | ????## ##### ## #???# #????????? | | ?????###???# ##### ##### #?????????# | | ??????????# #???# *%= #?????????# " ## | | ?????????# ##???# *#### #??????????# ???? | | ?????????# #????# ##??# #???????????#?????? | | ?????????## #????# ##??## ###### %###???????? | | ??????????## ##????# ##???# %! % #??????? | | ???????????####????# #????# % #? ???????? | | ???????????????????# ##????# ##########?=???????? | | ???????????????????# #??????# #?????????#%#??????? | | ###????????????????##?????### #?????????# #??????? | +----------------------------------------------------+ Best States ------------- Heat Dissipation 25 Energy Generation 10 Energy Capacity 250 Matter Stores 300 Matter Capacity 300 Sight Range 16 Terrain Scan Density 10 Evasion (%) 55 Recoil Reduction 2 Item Schematics ----------------- None Robot Schematics ------------------ None Fabricated ------------ Nothing Alien Tech Used ----------------- None Achievements -------------- None Challenges ------------ None Game ------ Seed WeldingProtonProtomatter Manual? 0 Play Time 00:08:29 Cumulative 461.5 hours Start 2024.11.12 @ 12:33:27 End 2024.11.12 @ 12:41:37 Sessions 1 Manual Loads 0 Difficulty Rogue Special Mode None Game No. 792 Rogue 637 Adventurer 148 Explorer 7 Win Type - Total 22 Types 17/1/3/1/0/0/0/0/0 Lore% 58 Gallery% 83 Achievement% 74 Wizard Run 0 Options --------- Layout 1 ASCII 0 Keyboard 0 Movement Numpad Keybinds 0 Fullscreen 2 Font 24/Smallcaps Map View 50x35 Zoom Use 0% Tactical HUD 1 Map Filters NONE Filters NONE Steam 1 RUN: 62c76b12-05a3-4b28-9e29-649a1d3e66f7